[Event "Titled Tuesday Blitz June 07 Late 2022"]
[White "Silva, Miguel Antonio Neto"]
[Black "Vasquez Schroeder, Rodrigo"]
[WhiteFideId "1911929"]
[BlackFideId "3400042"]
[WhiteElo "2204"]
[BlackElo "2567"]
[Result "1/2-1/2"]
[Round "07"]
[TimeControl "180+1"]
[Date "2022.06.07"]
[WhiteClock "0:00:29"]
[BlackClock "0:00:26"]

1. d4 {[%clk 0:02:53]}  Nf6 {[%clk 0:02:58]} 2. c4 {[%clk 0:02:53]}  g6 {[%clk 0:02:59]} 3. Nc3 {[%clk 0:02:52]}  Bg7 {[%clk 0:02:59]} 4. e4 {[%clk 0:02:52]}  d6 {[%clk 0:02:59]} 5. Be2 {[%clk 0:02:51]}  O-O {[%clk 0:03:00]} 6. Nf3 {[%clk 0:02:51]}  e5 {[%clk 0:03:00]} 7. O-O {[%clk 0:02:47]}  Nc6 {[%clk 0:03:00]} 8. d5 {[%clk 0:02:48]}  Ne7 {[%clk 0:03:00]} 9. b4 {[%clk 0:02:48]}  a5 {[%clk 0:02:59]} 10. bxa5 {[%clk 0:02:46]}  Rxa5 {[%clk 0:02:58]} 11. a4 {[%clk 0:02:45]}  Ne8 {[%clk 0:02:58]} 12. Ba3 {[%clk 0:02:44]}  b6 {[%clk 0:02:53]} 13. Bb4 {[%clk 0:02:41]}  Ra8 {[%clk 0:02:53]} 14. Nb5 {[%clk 0:02:28]}  Bd7 {[%clk 0:02:45]} 15. a5 {[%clk 0:02:21]}  bxa5 {[%clk 0:02:14]} 16. Rxa5 {[%clk 0:02:20]}  Bxb5 {[%clk 0:02:08]} 17. Rxb5 {[%clk 0:02:02]}  c5 {[%clk 0:02:00]} 18. Bc3 {[%clk 0:01:49]}  Nf6 {[%clk 0:01:53]} 19. Qc2 {[%clk 0:01:44]}  Bh6 {[%clk 0:01:53]} 20. Rfb1 {[%clk 0:01:40]}  Nh5 {[%clk 0:01:51]} 21. Rb7 {[%clk 0:01:31]}  Nf4 {[%clk 0:01:47]} 22. Bf1 {[%clk 0:01:30]}  Kh8 {[%clk 0:01:38]} 23. Nxe5 {[%clk 0:01:25]}  dxe5 {[%clk 0:01:37]} 24. Bxe5+ {[%clk 0:01:23]}  f6 {[%clk 0:01:37]} 25. Bc7 {[%clk 0:01:21]}  Qc8 {[%clk 0:01:30]} 26. Bxf4 {[%clk 0:01:19]}  Bxf4 {[%clk 0:01:26]} 27. Rxe7 {[%clk 0:01:19]}  Rb8 {[%clk 0:01:21]} 28. g3 {[%clk 0:01:15]}  Be5 {[%clk 0:01:19]} 29. Rxb8 {[%clk 0:01:10]}  Qxb8 {[%clk 0:01:19]} 30. Qa4 {[%clk 0:01:09]}  Rd8 {[%clk 0:01:15]} 31. Qc6 {[%clk 0:00:58]}  Bd4 {[%clk 0:01:10]} 32. Qc7 {[%clk 0:00:44]}  Qxc7 {[%clk 0:01:05]} 33. Rxc7 {[%clk 0:00:45]}  Rb8 {[%clk 0:01:02]} 34. d6 {[%clk 0:00:38]}  Rd8 {[%clk 0:01:00]} 35. d7 {[%clk 0:00:37]}  Kg7 {[%clk 0:01:00]} 36. Bh3 {[%clk 0:00:33]}  Kf7 {[%clk 0:01:01]} 37. Rc8 {[%clk 0:00:33]}  Ke7 {[%clk 0:01:01]} 38. Rxd8 {[%clk 0:00:33]}  Kxd8 {[%clk 0:01:01]} 39. Kf1 {[%clk 0:00:33]}  Ke7 {[%clk 0:01:00]} 40. Ke2 {[%clk 0:00:34]}  h5 {[%clk 0:00:54]} 41. f4 {[%clk 0:00:31]}  Bg1 {[%clk 0:00:53]} 42. Kf1 {[%clk 0:00:29]}  Bd4 {[%clk 0:00:51]} 43. g4 {[%clk 0:00:26]}  h4 {[%clk 0:00:47]} 44. Ke2 {[%clk 0:00:25]}  g5 {[%clk 0:00:33]} 45. fxg5 {[%clk 0:00:21]}  fxg5 {[%clk 0:00:33]} 46. Bf1 {[%clk 0:00:22]}  Kxd7 {[%clk 0:00:33]} 47. h3 {[%clk 0:00:22]}  Kd6 {[%clk 0:00:33]} 48. Kf3 {[%clk 0:00:23]}  Ke5 {[%clk 0:00:33]} 49. Bd3 {[%clk 0:00:23]}  Bc3 {[%clk 0:00:32]} 50. Be2 {[%clk 0:00:23]}  Kd4 {[%clk 0:00:32]} 51. Bf1 {[%clk 0:00:24]}  Be1 {[%clk 0:00:32]} 52. Be2 {[%clk 0:00:25]}  Bg3 {[%clk 0:00:32]} 53. Bf1 {[%clk 0:00:25]}  Be5 {[%clk 0:00:33]} 54. Be2 {[%clk 0:00:26]}  Kc3 {[%clk 0:00:33]} 55. Bf1 {[%clk 0:00:27]}  Kd2 {[%clk 0:00:34]} 56. Be2 {[%clk 0:00:28]}  Ke1 {[%clk 0:00:34]} 57. Bd3 {[%clk 0:00:28]}  Bd4 {[%clk 0:00:34]} 58. Be2 {[%clk 0:00:28]}  Be5 {[%clk 0:00:32]} 59. Bd3 {[%clk 0:00:28]}  Kd2 {[%clk 0:00:30]} 60. Be2 {[%clk 0:00:29]}  Ke1 {[%clk 0:00:26]} 1/2-1/2


[Site "https://www.chess.com"]

[Event "Titled Tuesday Blitz June 07 Late 2022"]
[White "Sjugirov, Sanan"]
[Black "Urazayev, Arystanbek"]
[WhiteFideId "4189302"]
[BlackFideId "13709810"]
[WhiteElo "2602"]
[BlackElo "2422"]
[Result "1/2-1/2"]
[Round "07"]
[TimeControl "180+1"]
[Date "2022.06.07"]
[WhiteClock "0:00:13"]
[BlackClock "0:01:31"]

1. Nf3 {[%clk 0:03:00]}  d5 {[%clk 0:03:00]} 2. g3 {[%clk 0:03:01]}  Nf6 {[%clk 0:03:00]} 3. Bg2 {[%clk 0:03:01]}  e6 {[%clk 0:03:01]} 4. O-O {[%clk 0:03:02]}  Be7 {[%clk 0:03:01]} 5. c4 {[%clk 0:03:02]}  O-O {[%clk 0:03:02]} 6. b3 {[%clk 0:03:03]}  a5 {[%clk 0:03:02]} 7. Nc3 {[%clk 0:03:01]}  c6 {[%clk 0:03:02]} 8. d4 {[%clk 0:02:59]}  b6 {[%clk 0:02:55]} 9. Bf4 {[%clk 0:02:42]}  Ba6 {[%clk 0:02:53]} 10. Qd3 {[%clk 0:02:31]}  b5 {[%clk 0:02:54]} 11. cxb5 {[%clk 0:02:19]}  cxb5 {[%clk 0:02:54]} 12. Nxb5 {[%clk 0:02:16]}  Qb6 {[%clk 0:02:54]} 13. a4 {[%clk 0:02:15]}  Nc6 {[%clk 0:02:54]} 14. Bd2 {[%clk 0:01:56]}  Ne4 {[%clk 0:02:51]} 15. Rfc1 {[%clk 0:01:30]}  Na7 {[%clk 0:02:51]} 16. Ne5 {[%clk 0:01:19]}  Nxb5 {[%clk 0:02:45]} 17. axb5 {[%clk 0:01:19]}  Bxb5 {[%clk 0:02:45]} 18. Qe3 {[%clk 0:01:19]}  Nxd2 {[%clk 0:02:13]} 19. Qxd2 {[%clk 0:01:20]}  Bb4 {[%clk 0:02:13]} 20. Qd1 {[%clk 0:01:16]}  Rac8 {[%clk 0:02:10]} 21. e3 {[%clk 0:01:15]}  g6 {[%clk 0:02:06]} 22. Bf1 {[%clk 0:01:14]}  Bd6 {[%clk 0:01:45]} 23. Bxb5 {[%clk 0:01:11]}  Qxb5 {[%clk 0:01:45]} 24. Nd3 {[%clk 0:01:09]}  Kg7 {[%clk 0:01:45]} 25. Kg2 {[%clk 0:01:08]}  h5 {[%clk 0:01:45]} 26. h4 {[%clk 0:01:07]}  Rxc1 {[%clk 0:01:40]} 27. Rxc1 {[%clk 0:01:06]}  Rb8 {[%clk 0:01:41]} 28. Rc3 {[%clk 0:00:45]}  Bb4 {[%clk 0:01:36]} 29. Rc7 {[%clk 0:00:39]}  Bd6 {[%clk 0:01:35]} 30. Rc3 {[%clk 0:00:31]}  Bb4 {[%clk 0:01:36]} 31. Nxb4 {[%clk 0:00:20]}  Qxb4 {[%clk 0:01:36]} 32. Qc2 {[%clk 0:00:20]}  Rb7 {[%clk 0:01:35]} 33. Qd3 {[%clk 0:00:14]}  Rb8 {[%clk 0:01:30]} 34. Qc2 {[%clk 0:00:13]}  Rb7 {[%clk 0:01:31]} 35. Qd3 {[%clk 0:00:13]}  Rb8 {[%clk 0:01:31]} 36. Qc2 {[%clk 0:00:13]} 1/2-1/2


[Site "https://www.chess.com"]

[Event "Titled Tuesday Blitz June 07 Late 2022"]
[White "Tahbaz, Arash"]
[Black "Svane, Rasmus"]
[WhiteFideId "12528846"]
[BlackFideId "4657101"]
[WhiteElo "2389"]
[BlackElo "2674"]
[Result "1/2-1/2"]
[Round "07"]
[TimeControl "180+1"]
[Date "2022.06.07"]
[WhiteClock "0:00:09"]
[BlackClock "0:00:03"]

1. Nf3 {[%clk 0:03:00]}  d5 {[%clk 0:03:00]} 2. g3 {[%clk 0:03:00]}  g6 {[%clk 0:02:56]} 3. Bg2 {[%clk 0:03:00]}  Bg7 {[%clk 0:02:57]} 4. O-O {[%clk 0:03:00]}  e5 {[%clk 0:02:57]} 5. d3 {[%clk 0:03:01]}  Nc6 {[%clk 0:02:57]} 6. e4 {[%clk 0:03:01]}  dxe4 {[%clk 0:02:58]} 7. dxe4 {[%clk 0:03:02]}  Qxd1 {[%clk 0:02:58]} 8. Rxd1 {[%clk 0:03:03]}  Bg4 {[%clk 0:02:54]} 9. c3 {[%clk 0:02:59]}  f6 {[%clk 0:02:49]} 10. Be3 {[%clk 0:02:55]}  Bh6 {[%clk 0:02:49]} 11. Bxh6 {[%clk 0:02:54]}  Nxh6 {[%clk 0:02:50]} 12. Na3 {[%clk 0:02:52]}  a6 {[%clk 0:02:49]} 13. Nc4 {[%clk 0:02:52]}  Be6 {[%clk 0:02:00]} 14. Ne3 {[%clk 0:02:52]}  Ne7 {[%clk 0:02:00]} 15. Nd5 {[%clk 0:02:42]}  Bxd5 {[%clk 0:01:43]} 16. exd5 {[%clk 0:02:43]}  Nf7 {[%clk 0:01:44]} 17. c4 {[%clk 0:02:39]}  O-O-O {[%clk 0:01:43]} 18. Re1 {[%clk 0:02:26]}  c6 {[%clk 0:01:36]} 19. Rad1 {[%clk 0:01:37]}  cxd5 {[%clk 0:01:34]} 20. cxd5 {[%clk 0:01:38]}  Rhe8 {[%clk 0:01:28]} 21. Nd2 {[%clk 0:01:32]}  Nd6 {[%clk 0:01:26]} 22. f4 {[%clk 0:01:28]}  exf4 {[%clk 0:01:20]} 23. gxf4 {[%clk 0:01:29]}  Nef5 {[%clk 0:01:19]} 24. Kf2 {[%clk 0:01:28]}  Kb8 {[%clk 0:01:10]} 25. Ne4 {[%clk 0:01:22]}  Nxe4+ {[%clk 0:01:09]} 26. Bxe4 {[%clk 0:01:23]}  Nd6 {[%clk 0:01:06]} 27. Bd3 {[%clk 0:01:21]}  Kc7 {[%clk 0:01:00]} 28. h4 {[%clk 0:01:19]}  Kd7 {[%clk 0:00:52]} 29. h5 {[%clk 0:01:15]}  gxh5 {[%clk 0:00:50]} 30. Rh1 {[%clk 0:01:15]}  Re7 {[%clk 0:00:33]} 31. Rxh5 {[%clk 0:01:15]}  Rc8 {[%clk 0:00:24]} 32. Rh6 {[%clk 0:00:54]}  f5 {[%clk 0:00:23]} 33. Rf6 {[%clk 0:00:43]}  Ne4+ {[%clk 0:00:17]} 34. Bxe4 {[%clk 0:00:43]}  fxe4 {[%clk 0:00:14]} 35. d6 {[%clk 0:00:43]}  Rg7 {[%clk 0:00:15]} 36. Ke3 {[%clk 0:00:41]}  Re8 {[%clk 0:00:15]} 37. f5 {[%clk 0:00:27]}  Rg3+ {[%clk 0:00:15]} 38. Kf2 {[%clk 0:00:20]}  Rd3 {[%clk 0:00:14]} 39. Rh1 {[%clk 0:00:18]}  e3+ {[%clk 0:00:13]} 40. Ke2 {[%clk 0:00:14]}  Rd2+ {[%clk 0:00:13]} 41. Kf3 {[%clk 0:00:15]}  e2 {[%clk 0:00:08]} 42. Re1 {[%clk 0:00:05]}  Rxb2 {[%clk 0:00:09]} 43. Rh6 {[%clk 0:00:02]}  Rxa2 {[%clk 0:00:08]} 44. Rxh7+ {[%clk 0:00:02]}  Kxd6 {[%clk 0:00:08]} 45. Rxb7 {[%clk 0:00:03]}  Re5 {[%clk 0:00:07]} 46. f6 {[%clk 0:00:02]}  Rf5+ {[%clk 0:00:05]} 47. Ke3 {[%clk 0:00:02]}  Re5+ {[%clk 0:00:05]} 48. Kd4 {[%clk 0:00:02]}  Ra4+ {[%clk 0:00:05]} 49. Kc3 {[%clk 0:00:02]}  Rf4 {[%clk 0:00:05]} 50. Kd2 {[%clk 0:00:02]}  Rd4+ {[%clk 0:00:05]} 51. Kc2 {[%clk 0:00:03]}  Kc6 {[%clk 0:00:04]} 52. Ra7 {[%clk 0:00:03]}  Kb6 {[%clk 0:00:04]} 53. Re7 {[%clk 0:00:03]}  Rxe7 {[%clk 0:00:03]} 54. fxe7 {[%clk 0:00:04]}  Re4 {[%clk 0:00:04]} 55. Kd3 {[%clk 0:00:05]}  Rxe7 {[%clk 0:00:04]} 56. Rxe2 {[%clk 0:00:05]}  Rc7 {[%clk 0:00:03]} 57. Rc2 {[%clk 0:00:05]}  Rxc2 {[%clk 0:00:02]} 58. Kxc2 {[%clk 0:00:05]}  a5 {[%clk 0:00:03]} 59. Kb3 {[%clk 0:00:06]}  a4+ {[%clk 0:00:03]} 60. Ka3 {[%clk 0:00:07]}  Ka6 {[%clk 0:00:03]} 61. Ka2 {[%clk 0:00:08]}  a3 {[%clk 0:00:03]} 62. Kxa3 {[%clk 0:00:09]} 1/2-1/2


[Site "https://www.chess.com"]

[Event "Titled Tuesday Blitz June 07 Late 2022"]
[White "Tarigan, Gilbert Elroy"]
[Black "Rasulov, Vugar"]
[WhiteFideId "7108133"]
[BlackFideId "13402390"]
[WhiteElo "1908"]
[BlackElo "2560"]
[Result "1-0"]
[Round "07"]
[TimeControl "180+1"]
[Date "2022.06.07"]
[WhiteClock "0:00:07"]
[BlackClock "0:00:19"]

1. e4 {[%clk 0:03:00]}  e5 {[%clk 0:02:59]} 2. Nf3 {[%clk 0:03:00]}  Nc6 {[%clk 0:02:59]} 3. Bb5 {[%clk 0:03:00]}  a6 {[%clk 0:02:59]} 4. Ba4 {[%clk 0:03:00]}  d6 {[%clk 0:02:59]} 5. O-O {[%clk 0:02:58]}  g6 {[%clk 0:02:59]} 6. d4 {[%clk 0:02:56]}  exd4 {[%clk 0:02:57]} 7. Nxd4 {[%clk 0:02:57]}  Bd7 {[%clk 0:02:57]} 8. Nxc6 {[%clk 0:02:54]}  Bxc6 {[%clk 0:02:56]} 9. Bxc6+ {[%clk 0:02:54]}  bxc6 {[%clk 0:02:57]} 10. Qd4 {[%clk 0:02:49]}  Qf6 {[%clk 0:02:50]} 11. Qc4 {[%clk 0:02:46]}  Ne7 {[%clk 0:02:49]} 12. e5 {[%clk 0:02:30]}  dxe5 {[%clk 0:02:45]} 13. Nc3 {[%clk 0:02:28]}  Qe6 {[%clk 0:02:41]} 14. Qxe6 {[%clk 0:02:27]}  fxe6 {[%clk 0:02:42]} 15. Ne4 {[%clk 0:02:25]}  Nf5 {[%clk 0:02:38]} 16. Be3 {[%clk 0:02:19]}  Bd6 {[%clk 0:02:37]} 17. g4 {[%clk 0:02:13]}  Nd4 {[%clk 0:02:32]} 18. c3 {[%clk 0:02:08]}  Ne2+ {[%clk 0:02:31]} 19. Kg2 {[%clk 0:02:08]}  Nf4+ {[%clk 0:02:32]} 20. Bxf4 {[%clk 0:02:00]}  exf4 {[%clk 0:02:33]} 21. Rad1 {[%clk 0:02:01]}  Ke7 {[%clk 0:02:29]} 22. Rfe1 {[%clk 0:02:00]}  h6 {[%clk 0:02:21]} 23. h4 {[%clk 0:01:51]}  a5 {[%clk 0:02:19]} 24. Nd2 {[%clk 0:01:51]}  a4 {[%clk 0:02:10]} 25. Nc4 {[%clk 0:01:42]}  Rhd8 {[%clk 0:02:04]} 26. Re4 {[%clk 0:01:34]}  g5 {[%clk 0:02:04]} 27. Rde1 {[%clk 0:01:29]}  f3+ {[%clk 0:01:39]} 28. Kh3 {[%clk 0:01:21]}  Kd7 {[%clk 0:01:38]} 29. Rxe6 {[%clk 0:01:18]}  gxh4 {[%clk 0:01:39]} 30. Rxh6 {[%clk 0:01:12]}  Rh8 {[%clk 0:01:35]} 31. Ree6 {[%clk 0:00:52]}  a3 {[%clk 0:01:24]} 32. b3 {[%clk 0:00:48]}  Rxh6 {[%clk 0:01:23]} 33. Rxh6 {[%clk 0:00:48]}  Re8 {[%clk 0:01:23]} 34. Rh7+ {[%clk 0:00:41]}  Kc8 {[%clk 0:01:18]} 35. Nxd6+ {[%clk 0:00:31]}  cxd6 {[%clk 0:01:19]} 36. Ra7 {[%clk 0:00:31]}  Re2 {[%clk 0:01:19]} 37. Rxa3 {[%clk 0:00:16]}  Rxf2 {[%clk 0:01:17]} 38. Kxh4 {[%clk 0:00:16]}  Kb7 {[%clk 0:00:57]} 39. Kg3 {[%clk 0:00:15]}  Rf1 {[%clk 0:00:57]} 40. Ra4 {[%clk 0:00:14]}  d5 {[%clk 0:00:51]} 41. Rf4 {[%clk 0:00:14]}  Ra1 {[%clk 0:00:48]} 42. Rxf3 {[%clk 0:00:14]}  Rxa2 {[%clk 0:00:48]} 43. g5 {[%clk 0:00:15]}  Ra1 {[%clk 0:00:47]} 44. Kg4 {[%clk 0:00:09]}  c5 {[%clk 0:00:41]} 45. g6 {[%clk 0:00:09]}  Rg1+ {[%clk 0:00:17]} 46. Rg3 {[%clk 0:00:09]}  Re1 {[%clk 0:00:17]} 47. g7 {[%clk 0:00:08]}  Re8 {[%clk 0:00:17]} 48. Kf5 {[%clk 0:00:08]}  Rg8 {[%clk 0:00:17]} 49. Ke6 {[%clk 0:00:07]}  d4 {[%clk 0:00:16]} 50. cxd4 {[%clk 0:00:06]}  cxd4 {[%clk 0:00:17]} 51. Kf7 {[%clk 0:00:07]}  d3 {[%clk 0:00:17]} 52. Kxg8 {[%clk 0:00:07]}  d2 {[%clk 0:00:18]} 53. Rd3 {[%clk 0:00:07]}  d1=Q {[%clk 0:00:19]} 54. Rxd1 {[%clk 0:00:07]} 1-0


[Site "https://www.chess.com"]

[Event "Titled Tuesday Blitz June 07 Late 2022"]
[White "Abarca Gonzalez, Nicolas"]
[Black "Zhigalko, Sergei"]
[WhiteFideId "3409422"]
[BlackFideId "13502956"]
[WhiteElo "2504"]
[BlackElo "2662"]
[Result "1-0"]
[Round "08"]
[TimeControl "180+1"]
[Date "2022.06.07"]
[WhiteClock "0:00:33"]
[BlackClock "0:00:02"]

1. e4 {[%clk 0:03:00]}  c5 {[%clk 0:02:58]} 2. Nf3 {[%clk 0:03:01]}  Nc6 {[%clk 0:02:58]} 3. Bb5 {[%clk 0:03:00]}  Nf6 {[%clk 0:02:58]} 4. Bxc6 {[%clk 0:03:00]}  dxc6 {[%clk 0:02:58]} 5. e5 {[%clk 0:03:01]}  Nd5 {[%clk 0:02:58]} 6. O-O {[%clk 0:03:00]}  h6 {[%clk 0:02:57]} 7. c4 {[%clk 0:02:51]}  Nb4 {[%clk 0:02:49]} 8. d4 {[%clk 0:02:46]}  Bf5 {[%clk 0:02:47]} 9. Na3 {[%clk 0:02:42]}  e6 {[%clk 0:02:40]} 10. Be3 {[%clk 0:02:37]}  Qa5 {[%clk 0:02:18]} 11. dxc5 {[%clk 0:02:24]}  Rd8 {[%clk 0:01:56]} 12. Bd2 {[%clk 0:02:12]}  Bxc5 {[%clk 0:01:51]} 13. Qb3 {[%clk 0:02:11]}  Rd3 {[%clk 0:01:46]} 14. Bc3 {[%clk 0:02:04]}  Qb6 {[%clk 0:01:46]} 15. Ne1 {[%clk 0:01:56]}  Rd7 {[%clk 0:01:37]} 16. Bxb4 {[%clk 0:01:46]}  Qxb4 {[%clk 0:01:24]} 17. Nac2 {[%clk 0:01:43]}  Qb6 {[%clk 0:00:45]} 18. Qc3 {[%clk 0:01:40]}  a5 {[%clk 0:00:43]} 19. b3 {[%clk 0:01:32]}  O-O {[%clk 0:00:33]} 20. a3 {[%clk 0:01:30]}  Rfd8 {[%clk 0:00:24]} 21. b4 {[%clk 0:01:29]}  axb4 {[%clk 0:00:25]} 22. axb4 {[%clk 0:01:29]}  Be7 {[%clk 0:00:26]} 23. c5 {[%clk 0:01:27]}  Qb5 {[%clk 0:00:24]} 24. Na3 {[%clk 0:01:25]}  Qe2 {[%clk 0:00:22]} 25. Nc4 {[%clk 0:01:22]}  Bd3 {[%clk 0:00:08]} 26. Nxd3 {[%clk 0:01:09]}  Rxd3 {[%clk 0:00:09]} 27. Qc1 {[%clk 0:01:10]}  Bg5 {[%clk 0:00:08]} 28. Qb1 {[%clk 0:01:02]}  Rc3 {[%clk 0:00:03]} 29. Nd6 {[%clk 0:01:01]}  Qxe5 {[%clk 0:00:03]} 30. Nxb7 {[%clk 0:00:52]}  Rb8 {[%clk 0:00:03]} 31. Nd6 {[%clk 0:00:52]}  Qd4 {[%clk 0:00:03]} 32. Ra4 {[%clk 0:00:45]}  Qd5 {[%clk 0:00:02]} 33. Qa1 {[%clk 0:00:36]}  Rb3 {[%clk 0:00:01]} 34. Ra8 {[%clk 0:00:37]}  Rxb4 {[%clk 0:00:02]} 35. Qa7 {[%clk 0:00:33]} 1-0


[Site "https://www.chess.com"]

[Event "Titled Tuesday Blitz June 07 Late 2022"]
[White "Ambartsumova, Karina"]
[Black "Yuan, Qingyu"]
[WhiteFideId "4166299"]
[BlackFideId "8609772"]
[WhiteElo "2262"]
[BlackElo "2359"]
[Result "0-1"]
[Round "08"]
[TimeControl "180+1"]
[Date "2022.06.07"]
[WhiteClock "0:00:01"]
[BlackClock "0:00:09"]

1. d4 {[%clk 0:03:00]}  d5 {[%clk 0:03:00]} 2. Nf3 {[%clk 0:03:00]}  Nf6 {[%clk 0:03:00]} 3. c4 {[%clk 0:03:00]}  e6 {[%clk 0:03:01]} 4. Nc3 {[%clk 0:02:59]}  a6 {[%clk 0:03:01]} 5. cxd5 {[%clk 0:02:57]}  exd5 {[%clk 0:03:02]} 6. Bg5 {[%clk 0:02:57]}  Be6 {[%clk 0:03:02]} 7. e3 {[%clk 0:02:56]}  Nbd7 {[%clk 0:03:02]} 8. Bd3 {[%clk 0:02:56]}  Bd6 {[%clk 0:03:02]} 9. O-O {[%clk 0:02:55]}  c6 {[%clk 0:03:02]} 10. Rb1 {[%clk 0:02:54]}  Bg4 {[%clk 0:02:57]} 11. b4 {[%clk 0:02:39]}  O-O {[%clk 0:02:48]} 12. a4 {[%clk 0:02:38]}  Re8 {[%clk 0:02:25]} 13. Qc2 {[%clk 0:02:32]}  h6 {[%clk 0:02:18]} 14. Bh4 {[%clk 0:02:27]}  Bxf3 {[%clk 0:02:05]} 15. gxf3 {[%clk 0:02:28]}  b5 {[%clk 0:02:05]} 16. Kh1 {[%clk 0:02:15]}  Nb6 {[%clk 0:01:55]} 17. Rg1 {[%clk 0:02:03]}  Kh8 {[%clk 0:01:39]} 18. Rg2 {[%clk 0:01:47]}  Be7 {[%clk 0:01:35]} 19. Ne2 {[%clk 0:01:19]}  Nc4 {[%clk 0:01:29]} 20. Bxc4 {[%clk 0:00:46]}  bxc4 {[%clk 0:01:27]} 21. Nf4 {[%clk 0:00:43]}  g5 {[%clk 0:01:08]} 22. Bxg5 {[%clk 0:00:43]}  hxg5 {[%clk 0:01:05]} 23. Rxg5 {[%clk 0:00:43]}  Rg8 {[%clk 0:00:50]} 24. Rbg1 {[%clk 0:00:38]}  Qf8 {[%clk 0:00:42]} 25. R5g3 {[%clk 0:00:16]}  Rxg3 {[%clk 0:00:29]} 26. Rxg3 {[%clk 0:00:17]}  Nh7 {[%clk 0:00:29]} 27. Qf5 {[%clk 0:00:13]}  Bd6 {[%clk 0:00:19]} 28. Rh3 {[%clk 0:00:12]}  Qg7 {[%clk 0:00:17]} 29. Nh5 {[%clk 0:00:10]}  Qg6 {[%clk 0:00:16]} 30. Qd7 {[%clk 0:00:03]}  Rg8 {[%clk 0:00:15]} 31. Ng3 {[%clk 0:00:03]}  c3 {[%clk 0:00:09]} 32. Qxc6 {[%clk 0:00:01]}  Bxg3 {[%clk 0:00:09]} 0-1


[Site "https://www.chess.com"]

[Event "Titled Tuesday Blitz June 07 Late 2022"]
[White "Araujo Sanchez, Josue"]
[Black "Yurasova, Daria"]
[WhiteFideId "6416896"]
[BlackFideId "34146919"]
[WhiteElo "2339"]
[BlackElo "2021"]
[Result "1-0"]
[Round "08"]
[TimeControl "180+1"]
[Date "2022.06.07"]
[WhiteClock "0:01:00"]
[BlackClock "0:00:14"]

1. c4 {[%clk 0:03:00]}  c5 {[%clk 0:02:57]} 2. Nf3 {[%clk 0:02:59]}  b6 {[%clk 0:02:57]} 3. g3 {[%clk 0:02:57]}  Bb7 {[%clk 0:02:58]} 4. Bg2 {[%clk 0:02:58]}  e6 {[%clk 0:02:58]} 5. O-O {[%clk 0:02:42]}  Nf6 {[%clk 0:02:58]} 6. Nc3 {[%clk 0:02:43]}  Be7 {[%clk 0:02:58]} 7. d4 {[%clk 0:02:43]}  cxd4 {[%clk 0:02:58]} 8. Qxd4 {[%clk 0:02:42]}  O-O {[%clk 0:02:53]} 9. Bf4 {[%clk 0:02:42]}  d6 {[%clk 0:02:50]} 10. Qd3 {[%clk 0:02:41]}  Na6 {[%clk 0:02:42]} 11. Rad1 {[%clk 0:02:39]}  Nc5 {[%clk 0:02:40]} 12. Qc2 {[%clk 0:02:38]}  a6 {[%clk 0:02:36]} 13. b4 {[%clk 0:02:33]}  Nce4 {[%clk 0:02:36]} 14. Nd4 {[%clk 0:02:23]}  Nxc3 {[%clk 0:02:26]} 15. Bxb7 {[%clk 0:02:16]}  Nxd1 {[%clk 0:02:25]} 16. Bxa8 {[%clk 0:02:15]}  Qxa8 {[%clk 0:02:24]} 17. Rxd1 {[%clk 0:02:15]}  Rc8 {[%clk 0:02:19]} 18. Qb3 {[%clk 0:02:06]}  Bf8 {[%clk 0:02:14]} 19. Bg5 {[%clk 0:02:03]}  Nd7 {[%clk 0:02:09]} 20. c5 {[%clk 0:01:42]}  d5 {[%clk 0:01:00]} 21. cxb6 {[%clk 0:01:20]}  Nxb6 {[%clk 0:00:57]} 22. Nf3 {[%clk 0:01:18]}  Nc4 {[%clk 0:00:55]} 23. a3 {[%clk 0:01:15]}  Qb7 {[%clk 0:00:54]} 24. Qa4 {[%clk 0:01:15]}  Qb5 {[%clk 0:00:53]} 25. Qxb5 {[%clk 0:01:14]}  axb5 {[%clk 0:00:54]} 26. Bc1 {[%clk 0:01:13]}  Ra8 {[%clk 0:00:53]} 27. Rd3 {[%clk 0:01:13]}  f6 {[%clk 0:00:52]} 28. Nd4 {[%clk 0:01:12]}  e5 {[%clk 0:00:38]} 29. Nxb5 {[%clk 0:01:11]}  d4 {[%clk 0:00:39]} 30. Kf1 {[%clk 0:01:09]}  Nb6 {[%clk 0:00:25]} 31. Ke1 {[%clk 0:01:06]}  Rc8 {[%clk 0:00:20]} 32. Rd1 {[%clk 0:00:59]}  Kf7 {[%clk 0:00:16]} 33. e3 {[%clk 0:01:00]}  dxe3 {[%clk 0:00:13]} 34. Bxe3 {[%clk 0:01:01]}  Ke6 {[%clk 0:00:14]} 35. Bxb6 {[%clk 0:01:00]} 1-0


[Site "https://www.chess.com"]

[Event "Titled Tuesday Blitz June 07 Late 2022"]
[White "Barp, Alberto"]
[Black "Dounis, Alexandros"]
[WhiteFideId "872555"]
[BlackFideId "4213238"]
[WhiteElo "2229"]
[BlackElo "2204"]
[Result "0-1"]
[Round "08"]
[TimeControl "180+1"]
[Date "2022.06.07"]
[WhiteClock "0:01:03"]
[BlackClock "0:01:02"]

1. d4 {[%clk 0:03:00]}  Nf6 {[%clk 0:02:58]} 2. c4 {[%clk 0:02:58]}  g6 {[%clk 0:02:58]} 3. g3 {[%clk 0:02:58]}  c6 {[%clk 0:02:55]} 4. Bg2 {[%clk 0:02:57]}  d5 {[%clk 0:02:54]} 5. Nf3 {[%clk 0:02:57]}  Bg7 {[%clk 0:02:54]} 6. O-O {[%clk 0:02:57]}  O-O {[%clk 0:02:54]} 7. Nc3 {[%clk 0:02:57]}  dxc4 {[%clk 0:02:53]} 8. e4 {[%clk 0:02:57]}  b5 {[%clk 0:02:49]} 9. Qe2 {[%clk 0:02:56]}  Bg4 {[%clk 0:02:42]} 10. h3 {[%clk 0:02:55]}  Bxf3 {[%clk 0:02:40]} 11. Bxf3 {[%clk 0:02:55]}  Qxd4 {[%clk 0:02:36]} 12. Rd1 {[%clk 0:02:55]}  Qb6 {[%clk 0:02:32]} 13. e5 {[%clk 0:02:55]}  Nfd7 {[%clk 0:02:26]} 14. e6 {[%clk 0:02:55]}  fxe6 {[%clk 0:02:25]} 15. Qxe6+ {[%clk 0:02:56]}  Kh8 {[%clk 0:02:24]} 16. Be3 {[%clk 0:02:56]}  Qb7 {[%clk 0:02:19]} 17. Bg2 {[%clk 0:02:44]}  Ne5 {[%clk 0:02:16]} 18. Bd4 {[%clk 0:02:34]}  Nbd7 {[%clk 0:02:11]} 19. f4 {[%clk 0:02:31]}  Rf6 {[%clk 0:02:02]} 20. Qxe7 {[%clk 0:02:26]}  Bf8 {[%clk 0:02:02]} 21. Qxf6+ {[%clk 0:02:04]}  Nxf6 {[%clk 0:02:02]} 22. Bxe5 {[%clk 0:02:02]}  Bg7 {[%clk 0:02:01]} 23. Rd6 {[%clk 0:02:02]}  Rf8 {[%clk 0:01:52]} 24. Rad1 {[%clk 0:01:59]}  b4 {[%clk 0:01:41]} 25. Ne2 {[%clk 0:01:47]}  Qb6+ {[%clk 0:01:33]} 26. Kh2 {[%clk 0:01:46]}  Qf2 {[%clk 0:01:31]} 27. R1d2 {[%clk 0:01:41]}  Qe1 {[%clk 0:01:26]} 28. Rd8 {[%clk 0:01:27]}  Rxd8 {[%clk 0:01:16]} 29. Rxd8+ {[%clk 0:01:28]}  Ng8 {[%clk 0:01:16]} 30. Bxg7+ {[%clk 0:01:24]}  Kxg7 {[%clk 0:01:17]} 31. Nd4 {[%clk 0:01:24]}  Nf6 {[%clk 0:01:12]} 32. Rd6 {[%clk 0:01:18]}  Nh5 {[%clk 0:01:07]} 33. Ne6+ {[%clk 0:01:14]}  Kh6 {[%clk 0:01:06]} 34. g4 {[%clk 0:01:03]}  Qg3+ {[%clk 0:01:06]} 35. Kh1 {[%clk 0:01:02]}  Nxf4 {[%clk 0:01:03]} 36. g5+ {[%clk 0:01:03]}  Kh5 {[%clk 0:01:02]} 0-1


[Site "https://www.chess.com"]